lending/lending_fUSD_20251020
["ID","MTS","AMOUNT","RATE_DAILY","PERIOD"]
[391911034,1760977840833,-9999.99,0.00022562,2]
[391911036,1760977840847,-9999.99,0.00022562,2]
[391911037,1760977840857,-150.99,0.00022562,2]
[391911038,1760977840868,-150.99,0.00022562,2]
[391911039,1760977840878,-1138.69,0.00022562,2]
[391911040,1760977840889,-172.04,0.00023475,2]
[391911041,1760977840899,-1006.63983316,0.00023479,2]
[391911042,1760977840909,-690.42200899,0.00023483,2]
[391911043,1760977840919,-531.41,0.00023836,2]
[391911044,1760977840930,-500.0,0.00023889,2]
[391911045,1760977840940,-1000.0,0.00024437,2]
[391911046,1760977840950,-34899.45327541,0.000248,3]
[391911056,1760977844932,-319.21810282,0.000248,3]
[391911057,1760977844949,-377.61259671,0.000248,3]
[391911064,1760977846408,-1739.80858611,0.000248,3]
[391911066,1760977846470,-496.08405001,0.000248,3]
[391911067,1760977846483,-3294.19141389,0.000248,3]
[391911068,1760977846579,-314.64999865,0.000248,3]
[391911069,1760977846637,-326422.2011474,0.000248,3]
[391911070,1760977846647,-151.0,0.000248,7]
[391911071,1760977846657,-243.058307,0.000248,7]
[391911072,1760977846667,-27319.54889945,0.000249,3]
[391911073,1760977846684,-240177.78278655,0.000249,3]
[391911074,1760977846693,-1500.0,0.00024985,2]
[391911075,1760977846703,-500.0,0.00025001,2]
[391911076,1760977846712,-1500.0,0.00025533,2]
[391911077,1760977846723,-1006.63983316,0.00025623,2]
[391911078,1760977846732,-690.42200899,0.00025627,2]
[391911079,1760977846742,-295.95,0.00026676,2]
[391911080,1760977846756,-153.0,0.00026774,2]
[391911081,1760977846766,-153.0,0.00026774,2]
[391911082,1760977846775,-153.0,0.00026774,2]
[391911083,1760977846784,-153.0,0.00026774,2]
[391911084,1760977846794,-153.0,0.00026774,2]
[391911085,1760977846803,-153.0,0.00026774,2]
[391911086,1760977846814,-153.0,0.00026774,2]
[391911087,1760977846824,-153.0,0.00026774,2]
[391911088,1760977846834,-153.0,0.00026774,2]
[391911089,1760977846844,-153.0,0.00026774,2]
[391911090,1760977846855,-153.0,0.00026774,2]
[391911091,1760977846865,-153.0,0.00026774,2]
[391911092,1760977846875,-153.0,0.00026776,2]
[391911093,1760977846884,-153.0,0.00026776,2]
[391911094,1760977846895,-153.0,0.00026776,2]
[391911095,1760977846907,-153.0,0.00026776,2]
[391911097,1760977846916,-153.0,0.00026776,2]
[391911098,1760977846925,-153.0,0.0002678,2]
[391911099,1760977846935,-153.0,0.0002678,2]
[391911100,1760977846944,-153.0,0.0002678,2]
[391911101,1760977846954,-153.0,0.0002678,2]
[391911102,1760977846963,-153.0,0.0002678,2]
[391911103,1760977846972,-153.0,0.0002678,2]
[391911104,1760977846982,-153.0,0.0002678,2]
[391911105,1760977846991,-153.0,0.0002678,2]
[391911106,1760977847000,-192.22,0.00027105,2]
[391911107,1760977847011,-1006.63983316,0.00027768,2]
[391911108,1760977847021,-690.42200899,0.00027771,2]
[391911109,1760977847035,-572.5,0.000278,7]
[391911110,1760977847044,-500.0,0.00027802,2]
[391911111,1760977847053,-154.098,0.00028151,18]
[391911112,1760977847063,-208.72455052,0.00028253,4]
[391911113,1760977847073,-3451.26,0.00028399,2]
[391911114,1760977847082,-151.0,0.00028399,30]
[391911115,1760977847092,-500.0,0.0002942,7]
[391911116,1760977847103,-171.15,0.00029603,2]
[391911117,1760977847112,-500.0,0.00029815,7]
[391911118,1760977847124,-1006.63983316,0.00029913,2]
[391911119,1760977847133,-690.42200899,0.00029914,2]
[391911120,1760977847143,-4575.0,0.000302,5]
[391911121,1760977847153,-500.0,0.00030603,2]
[391911122,1760977847163,-200.0,0.00030725,2]
[391911123,1760977847172,-150.0,0.00030871,7]
[391911124,1760977847314,-150.0,0.00030871,7]
[391911125,1760977847325,-150.0,0.00030871,7]
[391911126,1760977847353,-150.0,0.00030871,7]
[391911127,1760977847365,-150.0,0.00030871,7]
[391911128,1760977847375,-150.93936813,0.00030871,7]
[391911129,1760977847387,-150.0,0.00030871,7]
[391911130,1760977847397,-153.75214629,0.00030871,7]
[391911131,1760977847407,-166.14039485,0.00030871,7]
[391911132,1760977847417,-152.23972026,0.00030871,7]
[391911133,1760977847428,-150.0,0.00030871,7]
[391911134,1760977847440,-150.0,0.00030871,7]
[391911135,1760977847449,-150.0,0.00030871,7]
[391911136,1760977847460,-150.0,0.00030871,7]
[391911137,1760977847471,-500.0,0.00030951,7]
[391911138,1760977847480,-155.0,0.00031,120]
[391911139,1760977847490,-160.0,0.00031,120]
[391911141,1760977847500,-150.0,0.00031035,7]
[391911142,1760977847510,-500.0,0.00031086,7]
[391911143,1760977847519,-150.0,0.00031198,7]
[391911144,1760977847529,-150.0,0.00031214,7]
[391911145,1760977847539,-150.0,0.00031252,7]
[391911146,1760977847548,-572.5,0.000313,30]
[391911147,1760977847557,-150.0,0.00031361,7]
[391911148,1760977847567,-150.0,0.00031443,7]
[391911149,1760977847576,-500.0,0.00031471,7]
[391911150,1760977847585,-150.0,0.00031525,7]
[391911151,1760977847595,-150.0,0.00031557,7]
[391911153,1760977847608,-150.0,0.00031557,7]
[391911154,1760977847619,-150.0,0.00031633,7]
[391911155,1760977847628,-150.0,0.00031688,7]
[391911156,1760977847638,-150.0,0.00031729,7]
[391911157,1760977847647,-500.0,0.00031747,7]
[391911158,1760977847656,-150.0,0.00031802,7]
[391911159,1760977847668,-150.0,0.00031851,7]
[391911160,1760977847681,-150.0,0.000319,7]
[391911161,1760977847690,-150.0,0.00032015,7]
[391911162,1760977847700,-150.0,0.00032015,7]
[391911163,1760977847711,-150.0,0.00032015,7]
[391911164,1760977847721,-150.0,0.00032015,7]
[391911165,1760977847731,-1006.63983316,0.00032057,2]
[391911166,1760977847741,-690.42200899,0.00032058,2]
[391911167,1760977847751,-150.0,0.00032178,7]
[391911168,1760977847762,-1000.0,0.000322,5]
[391911169,1760977847772,-150.0,0.00032243,7]
[391911170,1760977847781,-150.0,0.00032243,7]
[391911171,1760977847790,-500.0,0.00032266,7]
[391911172,1760977847800,-150.0,0.00032341,7]
[391911173,1760977847811,-150.0,0.00032396,7]
[391911174,1760977847821,-892.22561195,0.00032426,7]
[391911175,1760977847831,-14591.2789432,0.00032465,2]
[391911176,1760977847840,-150.0,0.00032505,7]
[391911177,1760977847850,-150.0,0.00032586,7]
[391911178,1760977847861,-150.0,0.00032586,7]
[391911179,1760977847870,-150.0,0.00032586,7]
[391911180,1760977847880,-150.0,0.00032586,7]
[391911181,1760977847889,-5782.33187538,0.000326,120]
[391911182,1760977847899,-207.52113222,0.000326,120]
[391911183,1760977847908,-172.38372829,0.000326,120]
[391911184,1760977847918,-869.46559642,0.000326,120]
[391911185,1760977847928,-150.0,0.00032668,7]
[391911186,1760977847937,-572.5,0.000327,30]
[391911188,1760977847946,-500.0,0.0003275,7]
[391911189,1760977847956,-182.72488204,0.0003275,7]
[391911190,1760977847966,-600.0,0.0003275,7]
[391911191,1760977847975,-150.0,0.00032777,7]
[391911192,1760977847986,-150.0,0.00032831,7]
[391911193,1760977847998,-78190.8799716,0.00032865,2]
[391911194,1760977848007,-151.0,0.00032877,30]
[391911195,1760977848017,-150.0,0.00032929,7]
[391911196,1760977848026,-150.0,0.00032929,7]
[391911197,1760977848035,-150.0,0.00032995,7]
[391911198,1760977848047,-500.0,0.00033059,7]
[391911199,1760977848056,-217.93,0.00033076,120]
[391911200,1760977848065,-150.0,0.00033158,7]
[391911201,1760977848075,-150.0,0.00033158,7]
[391911202,1760977848086,-150.0,0.00033158,7]
[391911203,1760977848096,-150.0,0.00033158,7]
[391911204,1760977848106,-295.95,0.00033165,2]
[391911205,1760977848115,-500.0,0.00033272,7]
[391911206,1760977848125,-150.0,0.00033272,7]
[391911207,1760977848135,-150.0,0.00033321,7]
[391911208,1760977848145,-572.73428002,0.00033341,5]
[391911209,1760977848154,-151.20527438,0.00033342,30]
[391911210,1760977848165,-500.0,0.00033404,2]
[391911211,1760977848175,-150.0,0.00033444,7]
[391911212,1760977848184,-150.0,0.00033485,7]
[391911213,1760977848196,-1140.60486553,0.000335,120]
[391911214,1760977848500,1000.0,0.00034341,60]
[391911227,1760977861226,1000.0,0.00034341,30]
[391911228,1760977861765,200.0,0.00034341,120]
[391911230,1760977873957,1006.44,0.00034341,120]
[391911234,1760977927587,161.50410397,0.00034341,30]
[391911235,1760977927773,500.0,0.00034341,30]
[391911236,1760977928227,500.0,0.00034341,30]
[391911238,1760977928270,500.0,0.00034341,30]
[391911239,1760977929175,500.0,0.00034341,30]
[391911240,1760977929223,500.0,0.00034341,30]
[391911241,1760977929379,500.0,0.00034341,30]
[391911242,1760977929918,506.04,0.00034341,30]
[391911243,1760977930083,500.0,0.00034341,30]
[391911244,1760977930138,500.0,0.00034341,30]
[391911245,1760977930323,200.0,0.00034341,30]
[391911246,1760977930484,500.0,0.00034341,30]
[391911247,1760977930793,500.0,0.00034341,30]
[391911248,1760977930829,500.0,0.00034341,30]
[391911249,1760977931015,207.4,0.00034341,30]
[391911250,1760977931413,151.0,0.00034341,30]
[391911251,1760977931481,500.0,0.00034341,30]
[391911252,1760977931521,500.0,0.00034341,30]
[391911253,1760977931661,500.0,0.00034341,30]
[391911254,1760977931692,215.0738,0.00034341,30]
[391911255,1760977931892,200.0,0.00034341,30]
[391911256,1760977931933,151.0,0.00034341,30]
[391911257,1760977932107,151.0,0.00034341,30]
[391911258,1760977932238,500.0,0.00034341,30]
[391911259,1760977932637,151.0,0.00034341,30]
[391911260,1760977932736,500.0,0.00034341,30]
[391911261,1760977932769,500.0,0.00034341,30]
[391911262,1760977932915,500.0,0.00034341,30]
[391911263,1760977933227,223.0315306,0.00034341,30]
[391911264,1760977933325,151.0,0.00034341,30]
[391911265,1760977933551,151.0,0.00034341,30]
[391911266,1760977934233,151.0,0.00034341,30]
[391911267,1760977934366,151.0,0.00034341,30]
[391911268,1760977934533,500.0,0.00034341,30]
[391911269,1760977935101,500.0,0.00034341,30]
[391911270,1760977935236,500.0,0.00034341,30]
[391911271,1760977935298,151.0,0.00034341,30]
[391911272,1760977935424,200.0,0.00034341,30]
[391911273,1760977935692,223.0315306,0.00034341,30]
[391911274,1760977935851,500.0,0.00034341,30]
[391911275,1760977936036,500.0,0.00034341,30]
[391911276,1760977936094,200.0,0.00034341,30]
[391911277,1760977936600,500.0,0.00034341,30]
[391911278,1760977936790,200.0,0.00034341,30]
[391911279,1760977936833,500.0,0.00034341,30]
[391911280,1760977937313,500.0,0.00034341,30]
[391911281,1760977937379,500.0,0.00034341,30]
[391911282,1760977937471,200.0,0.00034341,30]
[391911283,1760977937517,500.0,0.00034341,30]
[391911284,1760977937819,500.0,0.00034341,30]
[391911285,1760977938148,500.0,0.00034341,30]
[391911286,1760977938208,500.0,0.00034341,30]
[391911287,1760977938518,500.0,0.00034341,30]
[391911288,1760977938915,500.0,0.00034341,30]
[391911289,1760977938996,500.0,0.00034341,30]
[391911290,1760977939476,250.0,0.00034341,30]
[391911291,1760977939511,500.0,0.00034341,30]
[391911292,1760977939541,500.0,0.00034341,30]
[391911293,1760977939620,500.0,0.00034341,30]
[391911294,1760977939884,500.0,0.00034341,30]
[391911295,1760977940072,200.0,0.00034341,30]
[391911296,1760977940124,500.0,0.00034341,30]
[391911297,1760977940155,250.0,0.00034341,30]
[391911298,1760977940193,500.0,0.00034341,30]
[391911299,1760977940248,500.0,0.00034341,30]
[391911300,1760977940391,600.0,0.00034341,30]
[391911301,1760977940587,500.0,0.00034341,30]
[391911302,1760977940771,200.0,0.00034341,30]
[391911303,1760977940851,250.0,0.00034341,30]
[391911304,1760977940882,500.0,0.00034341,30]
[391911305,1760977940913,500.0,0.00034341,30]
[391911306,1760977941114,600.0,0.00034341,30]
[391911307,1760977941173,500.0,0.00034341,30]
[391911308,1760977941218,500.0,0.00034341,30]
[391911309,1760977941288,500.0,0.00034341,30]
[391911310,1760977941445,200.0,0.00034341,30]
[391911311,1760977941531,250.0,0.00034341,30]
[391911312,1760977941563,500.0,0.00034341,30]
[391911313,1760977941852,500.0,0.00034341,30]
[391911314,1760977941998,600.0,0.00034341,30]
[391911315,1760977942096,200.0,0.00034341,30]
[391911316,1760977942458,500.0,0.00034341,30]
[391911317,1760977942486,500.0,0.00034341,30]
[391911318,1760977942516,500.0,0.00034341,30]
[391911319,1760977942565,500.0,0.00034341,30]
[391911320,1760977942699,600.0,0.00034341,30]
[391911321,1760977942776,250.0,0.00034341,30]
[391911322,1760977942970,500.0,0.00034341,30]
[391911323,1760977943177,500.0,0.00034341,30]
[391911324,1760977943213,500.0,0.00034341,30]
[391911325,1760977943245,500.0,0.00034341,30]
[391911326,1760977943294,500.0,0.00034341,30]
[391911327,1760977944248,500.0,0.00034341,30]
[391911328,1760977944342,600.0,0.00034341,30]
[391911329,1760977944379,500.0,0.00034341,30]
[391911330,1760977944561,500.0,0.00034365,30]
[391911331,1760977944996,500.0,0.00034365,30]
[391911332,1760977945055,600.0,0.00034365,30]
[391911333,1760977945099,500.0,0.00034365,30]
[391911334,1760977945200,500.0,0.00034365,30]
[391911335,1760977945653,500.0,0.00034365,30]
[391911336,1760977945796,500.0,0.00034365,30]
[391911337,1760977945827,250.0,0.00034365,30]
[391911338,1760977945887,500.0,0.00034365,30]
[391911339,1760977946101,600.0,0.00034365,30]
[391911340,1760977946249,500.0,0.00034365,30]
[391911341,1760977946485,500.0,0.00034365,30]
[391911342,1760977946518,250.0,0.00034365,30]
[391911343,1760977946558,500.0,0.00034365,30]
[391911344,1760977946769,500.0,0.00034365,30]
[391911345,1760977946807,600.0,0.00034365,30]
[391911346,1760977946933,500.0,0.00034365,30]
[391911347,1760977947223,500.0,0.00034365,30]
[391911348,1760977947264,500.0,0.00034365,30]
[391911349,1760977947448,250.0,0.00034365,30]
[391911350,1760977947500,500.0,0.00034365,30]
[391911351,1760977947582,500.0,0.00034365,30]
[391911352,1760977948141,500.0,0.00034365,30]
[391911353,1760977948267,500.0,0.00034365,30]
[391911354,1760977948303,500.0,0.00034365,30]
[391911355,1760977948339,250.0,0.00034365,30]
[391911356,1760977948379,600.0,0.00034365,30]
[391911357,1760977948867,500.0,0.00034365,30]
[391911358,1760977948953,500.0,0.00034365,30]
[391911359,1760977949068,600.0,0.00034365,30]
[391911360,1760977949611,151.0,0.00034365,30]
[391911361,1760977949860,500.0,0.00034365,30]
[391911362,1760977949908,250.0,0.00034365,30]
[391911363,1760977949948,500.0,0.00034365,30]
[391911364,1760977949987,600.0,0.00034365,30]
[391911365,1760977950052,500.0,0.00034365,30]
[391911366,1760977950124,500.0,0.00034365,30]
[391911367,1760977950630,151.0,0.00034365,30]
[391911368,1760977950737,500.0,0.00034365,30]
[391911369,1760977950837,500.0,0.00034365,30]
[391911370,1760977951102,250.0,0.00034365,30]
[391911371,1760977951136,300.0,0.00034365,30]
[391911372,1760977951345,151.0,0.00034365,30]
[391911373,1760977951435,500.0,0.00034365,30]
[391911374,1760977951815,250.0,0.00034365,30]
[391911375,1760977951854,311.1,0.00034365,30]
[391911376,1760977951890,500.0,0.00034365,30]
[391911377,1760977952030,151.0,0.00034365,30]
[391911378,1760977952114,500.0,0.00034365,30]
[391911379,1760977952525,250.0,0.00034365,30]
[391911380,1760977952563,322.6107,0.00034365,30]
[391911381,1760977952600,500.0,0.00034365,30]
[391911382,1760977952731,151.0,0.00034365,30]
[391911383,1760977952768,500.0,0.00034365,30]
[391911384,1760977953214,334.5472959,0.00034365,30]
[391911385,1760977953411,151.0,0.00034365,30]
[391911386,1760977953878,500.0,0.00034365,30]
[391911387,1760977953911,346.92554585,0.00034365,30]
[391911388,1760977954088,151.0,0.00034365,30]
[391911389,1760977954138,250.0,0.00034365,30]
[391911390,1760977954615,500.0,0.00034365,30]
[391911391,1760977954669,346.92554585,0.00034365,30]
[391911392,1760977954776,151.0,0.00034365,30]
[391911393,1760977955336,500.0,0.00034365,30]
[391911394,1760977955924,151.0,0.00034365,30]
[391911395,1760977956041,500.0,0.00034365,30]
[391911396,1760977956345,500.0,0.00034365,30]
[391911397,1760977956622,151.0,0.00034365,30]
[391911398,1760977956736,500.0,0.00034365,30]
[391911399,1760977956997,500.0,0.00034365,30]
[391911400,1760977957323,151.0,0.00034365,30]
[391911401,1760977958040,151.0,0.00034365,30]
[391911402,1760977958540,500.0,0.00034365,30]
[391911403,1760977958751,151.0,0.00034365,30]
[391911404,1760977960067,250.0,0.00034365,30]
[391911405,1760977960148,151.0,0.00034365,30]
[391911406,1760977960339,520.0,0.00034365,30]
[391911407,1760977960395,250.0,0.00034365,30]
[391911408,1760977960834,151.0,0.00034365,30]
[391911409,1760977961038,539.24,0.00034365,30]
[391911410,1760977961072,151.0,0.00034365,30]
[391911411,1760977961120,250.0,0.00034365,30]
[391911412,1760977961745,200.0,0.00034365,30]
[391911413,1760977961779,559.19188,0.00034365,30]
[391911414,1760977961836,250.0,0.00034365,30]
[391911415,1760977961958,151.0,0.00034365,30]
[391911416,1760977962537,579.88197956,0.00034365,30]
[391911417,1760977962655,151.0,0.00034365,30]
[391911418,1760977962710,151.0,0.00034365,30]
[391911419,1760977963225,601.3376128,0.00034365,30]
[391911420,1760977963363,151.0,0.00034365,30]
[391911421,1760977963426,151.0,0.00034365,30]
[391911422,1760977963494,214.6,0.00034365,30]
[391911423,1760977963874,250.0,0.00034365,30]
[391911424,1760977964063,200.0,0.00034365,30]
[391911425,1760977964368,250.0,0.00034365,30]
[391911426,1760977964685,151.0,0.00034365,30]
[391911427,1760977964767,200.0,0.00034365,30]
[391911428,1760977964834,623.58710448,0.00034365,30]
[391911429,1760977964928,151.0,0.00034365,30]
[391911430,1760977964965,250.0,0.00034365,30]
[391911431,1760977965055,250.0,0.00034365,30]
[391911432,1760977965390,151.0,0.00034365,30]
[391911434,1760977965625,151.0,0.00034365,30]
[391911435,1760977966110,646.65982734,0.00034365,30]
[391911436,1760977966815,646.65982734,0.00034365,30]
[391911437,1760977966913,250.0,0.00034365,30]
[391911438,1760977966946,151.0,0.00034365,30]
[391911439,1760977967020,500.0,0.00034365,30]
[391911440,1760977967063,151.0,0.00034365,30]
[391911441,1760977967658,200.0,0.00034365,30]
[391911442,1760977968177,151.0,0.00034365,30]
[391911443,1760977968212,250.0,0.00034365,30]
[391911444,1760977968245,151.0,0.00034365,30]
[391911445,1760977968306,500.0,0.00034365,30]
[391911446,1760977968371,200.0,0.00034365,30]
[391911447,1760977968894,151.0,0.00034365,30]
[391911448,1760977968926,151.0,0.00034365,30]
[391911449,1760977968959,250.0,0.00034365,30]
[391911450,1760977969000,500.0,0.00034365,30]
[391911451,1760977969433,200.0,0.00034365,30]
[391911452,1760977969734,500.0,0.00034365,30]
[391911453,1760977970341,250.0,0.00034365,30]
[391911454,1760977970401,500.0,0.00034365,30]
[391911455,1760977970522,151.0,0.00034365,30]
[391911456,1760977970579,250.0,0.00034365,30]
[391911457,1760977970788,151.0,0.00034365,30]
[391911458,1760977971025,250.0,0.00034365,30]
[391911459,1760977971134,500.0,0.00034365,30]
[391911460,1760977971337,151.0,0.00034365,30]
[391911461,1760977971391,250.0,0.00034365,30]
[391911462,1760977971490,151.0,0.00034365,30]
[391911463,1760977971725,250.0,0.00034365,30]
[391911464,1760977971805,500.0,0.00034365,30]
[391911465,1760977972169,151.0,0.00034365,30]
[391911466,1760977972343,151.0,0.00034365,30]
[391911467,1760977972865,151.0,0.00034365,30]
[391911468,1760977972991,250.0,0.00034365,30]
[391911469,1760977973023,250.0,0.00034365,30]
[391911470,1760977973189,151.0,0.00034365,30]
[391911471,1760977973523,500.0,0.00034365,30]
[391911472,1760977973561,151.0,0.00034365,30]
[391911473,1760977973597,500.0,0.00034365,30]
[391911474,1760977973874,151.0,0.00034365,30]
[391911475,1760977974172,250.0,0.00034365,30]
[391911476,1760977974223,500.0,0.00034365,30]
[391911477,1760977974269,151.0,0.00034365,30]
[391911478,1760977974595,151.0,0.00034365,30]
[391911479,1760977974665,250.0,0.00034365,30]
[391911480,1760977974872,250.0,0.00034365,30]
[391911481,1760977974942,151.0,0.00034365,30]
[391911482,1760977975031,500.0,0.00034365,30]
[391911483,1760977975290,151.0,0.00034365,30]
[391911484,1760977975353,250.0,0.00034365,30]
[391911485,1760977975554,250.0,0.00034365,30]
[391911486,1760977976099,250.0,0.00034365,30]
[391911487,1760977976180,500.0,0.00034365,30]
[391911488,1760977976249,500.0,0.00034365,30]
[391911489,1760977976285,250.0,0.00034365,30]
[391911490,1760977976779,250.0,0.00034365,30]
[391911491,1760977976842,500.0,0.00034365,30]
[391911492,1760977976923,250.0,0.00034365,30]
[391911493,1760977977017,151.0,0.00034365,30]
[391911494,1760977977786,250.0,0.00034365,30]
[391911495,1760977977821,500.0,0.00034365,30]
[391911496,1760977977961,500.0,0.00034365,30]
[391911497,1760977978039,250.0,0.00034365,30]
[391911498,1760977978087,151.0,0.00034365,30]
[391911499,1760977978387,500.0,0.00034365,30]
[391911500,1760977978447,250.0,0.00034365,30]
[391911501,1760977978689,500.0,0.00034365,30]
[391911502,1760977978751,250.0,0.00034365,30]
[391911503,1760977979031,500.0,0.00034365,30]
[391911504,1760977979063,250.0,0.00034365,30]
[391911505,1760977979425,500.0,0.00034365,30]
[391911506,1760977979525,250.0,0.00034365,30]
[391911507,1760977979726,500.0,0.00034365,30]
[391911508,1760977979864,151.0,0.00034365,30]
[391911509,1760977980167,500.0,0.00034365,30]
[391911510,1760977980200,250.0,0.00034365,30]
[391911511,1760977980575,500.0,0.00034365,30]
[391911512,1760977980863,500.0,0.00034365,30]
[391911513,1760977980894,250.0,0.00034365,30]
[391911514,1760977981110,500.0,0.00034365,30]
[391911515,1760977981611,250.0,0.00034365,30]
[391911516,1760977981641,500.0,0.00034365,30]
[391911517,1760977981671,250.0,0.00034365,30]
[391911518,1760977982295,250.0,0.00034365,30]
[391911519,1760977982377,250.0,0.00034365,30]
[391911520,1760977982980,250.0,0.00034365,30]
[391911521,1760977983355,500.0,0.00034365,30]
[391911522,1760977983470,250.0,0.00034365,30]
[391911523,1760977983549,500.0,0.00034365,30]
[391911524,1760977984059,500.0,0.00034365,30]
[391911525,1760977984794,250.0,0.00034365,30]
[391911526,1760977984839,500.0,0.00034365,30]
[391911527,1760977985379,500.0,0.00034365,30]
[391911528,1760977985961,250.0,0.00034365,30]
[391911529,1760977986528,500.0,0.00034365,30]
[391911530,1760977987006,500.0,0.00034365,30]
[391911531,1760977987268,500.0,0.00034365,30]
[391911532,1760977987887,250.0,0.00034365,30]
[391911533,1760977988196,500.0,0.00034365,30]
[391911535,1760977989072,250.0,0.00034365,30]
[391911536,1760977989542,500.0,0.00034365,30]
[391911537,1760977989835,250.0,0.00034365,30]
[391911538,1760977990267,500.0,0.00034365,30]
[391911539,1760977990519,250.0,0.00034365,30]
[391911540,1760977990969,500.0,0.00034365,30]
[391911541,1760977991236,250.0,0.00034365,30]
[391911542,1760977991928,250.0,0.00034365,30]
[391911543,1760977993387,250.0,0.00034365,30]
[391911544,1760977993932,500.0,0.00034365,30]
[391911545,1760977994619,500.0,0.00034365,30]
[391911546,1760977994979,250.0,0.00034365,30]
[391911547,1760977997117,250.0,0.00034365,30]
[391911548,1760977998801,250.0,0.00034365,30]
[391911549,1760977999675,250.0,0.00034365,30]
[391911550,1760978002610,250.0,0.00034365,30]
[391911551,1760978003331,250.0,0.00034365,30]
[391911552,1760978004024,250.0,0.00034365,30]
[391911553,1760978004710,250.0,0.00034365,30]
[391911554,1760978015167,-1430.62,0.00014999,2]
[391911555,1760978015188,-1430.62,0.00014999,2]
[391911561,1760978074996,500.0,0.00014999,2]
[391911562,1760978075272,500.0,0.00014999,2]
[391911563,1760978075491,500.0,0.00014999,2]
[391911564,1760978075742,481.47853721,0.00014999,2]
[391911566,1760978103105,151.5,0.00034365,30]
[391911616,1760978131112,153.99731151,0.00034365,30]
[391911626,1760978152229,500.0,0.00014999,2]
[391911627,1760978152484,500.0,0.00014999,2]
[391911628,1760978152930,500.0,0.00014999,2]
[391911629,1760978152999,500.0,0.00014999,2]
[391911630,1760978153607,306.6,0.00014999,2]
[391911631,1760978162979,200.0,0.00034365,120]
[391911635,1760978228231,151.0,0.00034365,30]
[391911636,1760978229642,151.0,0.00034365,30]
[391911637,1760978229867,151.0,0.00034365,30]
[391911638,1760978230340,500.0,0.00034365,30]
[391911639,1760978230698,151.0,0.00034365,30]
[391911640,1760978231026,500.0,0.00034365,30]